bitfinex/quotes_ETHUSD_20260216
["timestamp","ask_amount","ask_price","bid_price","bid_amount"]
[1771244198568,0.911,1978.1,1978.0,0.001]
[1771244200098,0.682,1978.4,1978.0,0.47005061]
[1771244200798,0.682,1978.4,1978.1,0.001]
[1771244201304,0.6831,1978.4,1978.1,0.001]
[1771244202969,1.521,1978.3,1978.1,0.001]
[1771244203999,0.0011,1978.4,1978.1,0.001]
[1771244204206,0.0011,1978.4,1978.1,0.49359113]
[1771244204908,0.0011,1978.4,1978.1,0.001]
[1771244206574,1.5191,1978.4,1978.1,0.001]
[1771244210629,1.5191,1978.4,1978.1,0.47119535]
[1771244211529,1.5191,1978.4,1978.1,0.001]
[1771244213302,0.0011,1978.4,1978.1,0.001]
[1771244213501,1.3571,1978.4,1978.1,0.001]
[1771244215822,0.48384203,1978.3,1978.1,0.001]
[1771244216411,0.48384203,1978.3,1977.8,0.001]
[1771244217830,0.48384203,1978.2,1977.8,0.001]
[1771244220940,0.48384203,1978.1,1977.8,0.001]
[1771244221935,0.48384203,1978.3,1977.8,0.001]
[1771244223028,0.48384203,1978.2,1977.8,0.001]
[1771244225429,0.48384203,1978.2,1977.9,0.001]
[1771244231429,0.48384203,1978.0,1977.8,0.001]
[1771244231748,0.48384203,1978.0,1977.6,0.001]
[1771244232331,0.48384203,1977.9,1976.7,0.47019535]
[1771244232528,0.48384203,1977.7,1976.8,0.47019535]
[1771244232855,0.48384203,1977.5,1976.8,0.47019535]
[1771244233355,1.39484203,1977.6,1976.8,0.47019535]
[1771244234039,0.45000767,1977.5,1976.3,0.47591862]
[1771244237249,0.45000767,1977.4,1976.3,0.47591862]
[1771244237684,0.45000767,1977.4,1976.5,0.47591862]
[1771244238980,1.36100767,1977.6,1976.5,0.47591862]
[1771244243386,0.45000767,1977.5,1976.5,0.47591862]
[1771244245974,0.45000767,1977.4,1976.5,0.47591862]
[1771244246283,0.45000767,1977.3,1976.4,0.47691862]
[1771244246484,0.45000767,1977.3,1976.4,0.001]
[1771244248187,0.45000767,1977.1,1976.4,0.001]
[1771244248389,0.45000767,1976.9,1976.4,0.001]
[1771244249586,0.45000767,1976.9,1976.1,0.001]
[1771244250181,0.45000767,1976.7,1976.1,0.001]
[1771244250488,0.45000767,1976.5,1976.1,0.001]
[1771244250900,0.45000767,1976.5,1976.4,0.001]
[1771244251082,0.911,1976.6,1976.4,0.001]
[1771244251282,0.45000767,1976.7,1976.4,0.001]
[1771244251878,0.911,1976.5,1976.4,0.001]
[1771244252290,2.417,1976.5,1976.4,0.001]
[1771244265507,2.4181,1976.5,1976.4,0.001]
[1771244270283,0.0011,1976.5,1976.4,0.001]
[1771244270512,2.0331,1976.5,1976.4,0.001]
[1771244277813,2.0331,1976.5,1976.3,0.001]
[1771244278817,2.0331,1976.5,1976.4,0.001]
[1771244282230,2.032,1976.5,1976.4,0.46678243]
[1771244283296,0.0011,1976.7,1976.4,0.46678243]
[1771244283501,1.55,1976.6,1976.4,0.46678243]
[1771244283712,0.9131,1976.7,1976.4,0.46678243]
[1771244283713,1.49495482,1976.5,1976.4,0.46678243]
[1771244283912,1.549,1976.6,1976.5,0.46578243]
[1771244284225,1.549,1976.6,1976.3,0.001]
[1771244286049,2.03156398,1976.6,1976.3,0.001]
[1771244287063,0.48256398,1976.5,1976.3,0.001]
[1771244287230,0.48256398,1976.5,1975.8,0.46578243]
[1771244287632,0.48256398,1976.5,1975.4,0.46578243]
[1771244288719,0.48256398,1976.5,1975.5,7.38597048]
[1771244289046,0.48256398,1976.5,1975.6,0.46578243]
[1771244291958,0.0011,1976.4,1975.6,0.46578243]
[1771244292246,0.48366398,1976.4,1975.6,0.46578243]
[1771244292562,0.48256398,1976.3,1975.5,0.001]
[1771244292766,8.65200058,1976.4,1975.5,0.001]
[1771244292767,0.48256398,1975.9,1975.5,0.001]
[1771244292960,2.462,1975.8,1975.5,0.001]
[1771244293155,2.94456398,1975.8,1975.5,0.001]
[1771244293454,2.462,1975.8,1975.5,0.001]
[1771244293834,2.95418261,1975.8,1975.5,0.001]
[1771244294235,0.49218261,1975.5,1974.7,0.46220316]
[1771244294554,7.38597048,1975.4,1974.5,0.46220316]
[1771244294728,0.49218261,1975.6,1974.5,0.46220316]
[1771244294729,7.87815309,1975.6,1974.5,0.46220316]
[1771244294933,2.74349717,1975.5,1974.5,0.46220316]
[1771244295141,2.74349717,1975.4,1974.5,0.46220316]
[1771244295451,0.49218261,1975.5,1974.5,0.46220316]
[1771244295664,0.49218261,1975.2,1974.5,0.46220316]
[1771244295836,1.555,1975.1,1974.5,0.46220316]
[1771244297060,0.49218261,1975.6,1974.7,0.46220316]
[1771244297263,0.49218261,1975.4,1974.4,0.46300316]
[1771244297473,0.49218261,1975.4,1974.6,0.46220316]
[1771244298141,2.469,1975.5,1974.6,0.46220316]
[1771244298555,2.96118261,1975.5,1974.6,0.46220316]
[1771244299236,2.95471757,1975.5,1974.6,0.46220316]
[1771244299563,0.49218261,1975.4,1974.6,0.46220316]
[1771244300128,2.46253496,1975.5,1974.6,0.46220316]
[1771244301874,2.95471757,1975.5,1974.6,0.46220316]
[1771244304029,2.466,1975.4,1974.6,0.46220316]
[1771244304864,2.466,1975.4,1974.7,0.46320316]
[1771244305364,2.4671,1975.4,1974.7,0.46320316]
[1771244307941,2.95928261,1975.4,1974.7,0.46320316]
[1771244308140,2.4671,1975.4,1974.7,0.46320316]
[1771244309556,2.4543,1975.4,1974.7,0.46320316]
[1771244312881,2.94648261,1975.4,1974.7,0.46320316]
[1771244313378,0.49218261,1975.3,1974.7,0.46320316]
[1771244314172,0.912,1975.2,1974.7,0.46320316]
[1771244316651,1.40418261,1975.2,1974.7,0.001]
[1771244318374,0.912,1975.2,1974.7,0.46320316]
[1771244318684,0.912,1975.2,1974.7,0.001]
[1771244320197,1.40418261,1975.2,1974.7,0.001]
[1771244320503,0.49218261,1975.1,1974.7,0.001]
[1771244320651,7.88886093,1975.1,1974.5,0.001]
[1771244320983,0.49218261,1975.0,1974.5,0.001]
[1771244321365,0.912,1975.2,1974.5,0.46320316]
[1771244321560,2.75784646,1975.1,1974.5,0.46320316]
[1771244321886,2.75784646,1975.0,1974.5,0.46320316]
[1771244322054,1.40418261,1975.2,1974.5,0.46320316]
[1771244322255,2.75784798,1975.1,1974.5,0.46320316]
[1771244322468,1.40418261,1975.2,1974.5,0.46320316]
[1771244322469,2.75784798,1975.0,1974.5,0.46320316]
[1771244322791,2.75784798,1974.9,1974.5,0.46320316]
[1771244322997,1.40418261,1975.2,1974.5,0.46320316]
[1771244323996,0.912,1975.2,1974.5,0.46320316]
[1771244324179,0.912,1975.2,1974.7,0.4919785]
[1771244325494,1.542,1975.3,1974.9,0.4919785]
[1771244327377,1.542,1975.3,1974.6,7.39667832]
[1771244327378,0.0011,1975.7,1975.3,0.46866984]
[1771244331372,0.0011,1975.7,1975.2,7.86534816]
[1771244331578,0.0011,1975.7,1975.3,0.46866984]
[1771244332208,0.48406842,1975.7,1974.7,7.86534816]
[1771244332410,0.48296842,1975.5,1974.8,0.46866984]
[1771244332611,0.48406842,1975.7,1974.8,0.46866984]
[1771244332907,0.48406842,1975.7,1974.8,0.46966984]
[1771244333095,0.0011,1975.6,1974.8,0.46966984]
[1771244333792,1.539,1975.5,1975.1,7.86534816]
[1771244333998,1.539,1975.5,1975.1,0.46866984]
[1771244335606,1.539,1975.5,1974.9,0.46866984]
[1771244335776,2.02196842,1975.5,1974.8,0.46966984]
[1771244335982,1.539,1975.5,1974.8,0.46966984]
[1771244337515,2.02196842,1975.5,1974.8,0.46966984]
[1771244338307,0.48296842,1975.4,1974.8,0.001]
[1771244346113,0.48296842,1975.4,1974.9,0.001]
[1771244349436,0.0011,1975.6,1974.9,0.46966984]
[1771244349608,0.912,1975.5,1974.9,0.46966984]
[1771244351323,0.912,1975.5,1974.9,0.001]
[1771244351526,0.912,1975.5,1974.9,0.46966984]
[1771244355052,0.48566601,1976.4,1975.5,0.68566011]
[1771244355253,0.48456601,1976.3,1975.0,0.34445688]
[1771244355950,0.48456601,1976.2,1975.2,7.39040722]
[1771244356947,0.48566601,1976.4,1975.6,7.39040722]
[1771244358348,0.0011,1976.2,1975.6,7.39040722]
[1771244361358,0.48456601,1976.1,1975.4,7.39040722]
[1771244363257,0.48456601,1976.1,1975.4,7.7348641]
[1771244363457,0.9131,1976.2,1975.4,7.7348641]
[1771244363963,0.9131,1976.2,1975.6,7.39040722]
[1771244364141,1.39766601,1976.2,1975.6,7.39040722]
[1771244366354,0.48456601,1976.1,1975.2,7.7348641]
[1771244366557,0.48456601,1975.9,1975.2,7.7348641]
[1771244366755,0.48456601,1975.9,1975.2,7.39040722]
[1771244367266,1.521,1976.0,1975.4,7.39040722]
[1771244367667,2.00556601,1976.0,1975.4,7.39040722]
[1771244369548,0.48456601,1975.9,1975.2,7.39040722]
[1771244370545,0.48456601,1975.9,1975.5,0.001]
[1771244370864,1.39656601,1975.9,1975.5,0.001]
[1771244371757,0.912,1975.9,1975.5,0.001]
[1771244372558,0.912,1975.9,1975.6,7.39040722]
[1771244373480,0.912,1975.9,1975.5,0.001]
[1771244373875,0.48456601,1975.8,1975.5,0.001]
[1771244376186,0.912,1975.9,1975.5,0.001]
[1771244377182,1.39656601,1975.9,1975.5,0.001]
[1771244377379,0.912,1975.9,1975.5,0.001]
[1771244379251,1.521,1976.0,1975.6,7.39040722]
[1771244379865,1.521,1976.0,1975.5,7.73368782]
[1771244380070,1.521,1976.0,1975.5,7.38923094]
[1771244380273,0.48456601,1975.9,1975.5,0.001]
[1771244384685,1.521,1976.0,1975.5,7.38923094]
[1771244385390,1.97759883,1976.0,1975.6,0.001]
[1771244385590,0.0011,1975.8,1975.6,0.001]
[1771244388903,0.49306739,1975.9,1975.6,0.001]
[1771244395713,0.0011,1975.9,1975.6,0.001]
[1771244399790,0.0011,1975.9,1975.7,0.001]
[1771244399991,0.0011,1975.8,1975.7,0.001]
[1771244400396,1.521,1976.0,1975.7,0.001]
[1771244401016,1.521,1976.0,1975.7,0.34545688]
[1771244401229,1.0571,1976.4,1976.0,7.38823094]
[1771244401429,0.0011,1976.5,1976.0,7.73268782]
[1771244401726,1.06706739,1976.7,1976.2,7.38823094]
[1771244401938,0.49196739,1976.6,1976.0,7.38823094]
[1771244403137,0.49196739,1976.6,1975.8,0.34445688]
[1771244403138,0.49196739,1976.6,1975.8,7.38823094]
[1771244403610,0.49196739,1976.6,1975.7,0.001]
[1771244403931,0.49196739,1976.4,1975.7,0.001]
[1771244404292,1.26484038,1976.6,1975.7,0.001]
[1771244404293,0.49196739,1976.2,1975.7,0.001]
[1771244408646,1.40396739,1976.1,1975.7,0.001]
[1771244411252,0.49196739,1976.0,1975.7,0.001]
[1771244413146,0.49196739,1976.0,1975.8,0.001]
[1771244413305,0.49196739,1975.9,1975.8,0.001]
[1771244427737,1.40396739,1975.9,1975.8,0.001]
[1771244428668,1.488,1976.0,1975.8,0.001]
[1771244429561,1.489,1976.2,1975.8,0.34545688]
[1771244429859,1.489,1976.2,1975.8,0.001]
[1771244430455,3.44129081,1976.2,1975.8,0.001]
[1771244431167,0.46409081,1976.1,1975.8,0.001]
[1771244432562,0.46409081,1975.9,1975.8,0.001]
[1771244432769,1.4882,1976.0,1975.8,0.001]
[1771244434273,1.95229081,1976.0,1975.8,0.001]
[1771244435351,1.4882,1976.0,1975.8,0.001]
[1771244436699,1.95309081,1976.2,1975.8,0.001]
[1771244436864,1.4882,1976.1,1975.9,0.001]
[1771244438502,1.95309081,1976.2,1975.9,0.001]
[1771244438800,1.95229081,1976.1,1975.9,0.001]
[1771244439993,1.4882,1976.1,1975.9,0.001]
[1771244440198,0.46409081,1976.0,1975.9,0.001]
[1771244440491,1.4882,1976.1,1975.9,0.001]
[1771244444290,0.0011,1976.4,1976.0,7.38837352]
[1771244444498,0.49274574,1976.7,1976.3,0.34445688]
[1771244444499,0.0011,1976.7,1976.3,0.34445688]
[1771244444676,0.49164574,1976.9,1976.5,7.38837352]
[1771244444872,0.49164574,1976.9,1976.1,7.7328304]
[1771244445192,1.4893,1976.8,1976.3,7.7328304]
[1771244445360,1.4893,1976.9,1976.3,7.7328304]
[1771244445565,1.4893,1976.9,1976.5,7.7328304]
[1771244447389,0.519,1977.0,1976.5,7.7328304]
[1771244447592,1.4893,1976.9,1976.5,7.7328304]
[1771244448466,0.0011,1976.8,1976.5,7.7328304]
[1771244452301,0.0011,1976.9,1976.5,7.7328304]
[1771244452490,1.4904,1976.9,1976.5,7.7328304]
[1771244455403,0.0011,1976.9,1976.5,7.7328304]
[1771244456098,0.47730275,1976.7,1976.3,7.38837352]
[1771244456308,1.4893,1976.8,1976.2,0.49200928]
[1771244456484,1.4893,1976.7,1976.3,7.38837352]
[1771244456892,1.4893,1976.6,1976.3,7.38837352]
[1771244457092,1.4893,1976.7,1976.3,7.38837352]
[1771244457604,0.47730275,1976.8,1976.3,7.38837352]
[1771244457605,1.4893,1976.6,1976.3,7.38837352]
[1771244457909,1.4893,1976.7,1976.3,7.38837352]
[1771244458277,1.4893,1976.6,1976.3,7.38837352]
[1771244458603,1.4893,1976.7,1976.3,7.8803828]
[1771244458803,0.0011,1976.9,1976.5,7.38837352]
[1771244460881,0.0011,1977.1,1976.7,7.38837352]
[1771244461099,0.47840275,1977.1,1976.7,7.38837352]
[1771244461415,0.47840275,1977.1,1976.5,7.38837352]
[1771244461712,0.47840275,1976.8,1976.4,0.001]
[1771244464730,0.47840275,1976.8,1976.3,0.001]
[1771244465421,0.47730275,1976.7,1976.3,0.001]
[1771244465619,0.47730275,1976.5,1976.1,0.001]
[1771244474502,0.47730275,1976.5,1976.2,0.001]
[1771244475207,0.47730275,1976.5,1976.1,0.001]
[1771244475208,0.48449619,1976.4,1976.1,0.001]
[1771244477837,0.48449619,1976.2,1975.9,0.001]
[1771244478126,0.48449619,1976.2,1975.8,0.001]
[1771244478700,0.48449619,1976.0,1975.6,0.001]
[1771244478899,0.48449619,1975.8,1975.6,0.001]
[1771244481931,0.48449619,1975.6,1975.2,0.001]
[1771244482834,0.48449619,1975.8,1975.2,0.001]
[1771244483033,0.48449619,1975.8,1975.2,0.46471492]
[1771244483243,1.485,1975.9,1975.2,0.46471492]
[1771244483529,1.491,1975.9,1975.2,0.46471492]
[1771244483739,0.48449619,1975.8,1975.2,0.46471492]
[1771244484528,1.491,1975.9,1975.2,0.46471492]
[1771244485135,1.97549619,1975.9,1975.2,0.46471492]
[1771244486319,1.491,1975.9,1975.2,0.46471492]
[1771244486729,1.491,1975.9,1975.3,0.46471492]
[1771244486933,0.0011,1975.8,1975.3,0.001]
[1771244487537,0.48559619,1975.8,1975.3,0.001]
[1771244489736,0.0011,1975.8,1975.3,0.46471492]
[1771244492135,0.0011,1975.8,1975.4,0.46371492]
[1771244493432,0.0011,1975.8,1975.3,0.001]
[1771244493736,0.48559619,1975.8,1975.3,0.001]
[1771244497526,0.48449619,1975.6,1975.3,0.001]
[1771244497850,0.48559619,1975.8,1975.3,0.001]
[1771244499047,0.48559619,1975.8,1975.4,0.001]
[1771244499426,0.0011,1975.7,1975.4,0.001]
[1771244505430,0.49385466,1975.7,1975.4,0.001]
[1771244506251,0.0011,1975.7,1975.4,0.001]
[1771244508352,0.0011,1975.7,1975.4,0.47263162]
[1771244508950,0.46187548,1975.7,1975.4,0.001]
[1771244509870,0.46187548,1975.7,1975.2,0.001]
[1771244511163,0.46187548,1975.7,1975.3,0.001]
[1771244511365,0.46077548,1975.6,1975.3,0.001]
[1771244512645,0.0011,1975.7,1975.3,0.001]
[1771244512967,0.46187548,1975.7,1975.3,0.001]
[1771244518387,0.0011,1975.7,1975.3,0.001]
[1771244518882,0.0011,1975.7,1975.3,0.47263162]
[1771244521179,0.0011,1975.8,1975.5,0.47163162]
[1771244521682,0.0011,1975.9,1975.7,0.47163162]
[1771244522983,0.0011,1975.9,1975.3,0.001]
[1771244522984,1.478,1976.5,1976.0,7.86205372]
[1771244523185,1.93877548,1976.5,1975.8,7.86205372]
[1771244523586,1.478,1976.5,1975.9,0.47163162]
[1771244524297,0.0011,1976.7,1975.9,0.47163162]
[1771244527088,0.0011,1976.8,1975.9,0.47163162]
[1771244527089,0.0011,1976.8,1976.0,0.47163162]
[1771244527260,0.0011,1977.0,1976.2,0.47163162]
[1771244529776,0.0011,1977.1,1976.3,0.47163162]
[1771244533285,0.0011,1977.5,1976.4,0.47163162]
[1771244533490,0.0011,1977.5,1976.6,0.47163162]
[1771244535086,0.0011,1977.0,1976.6,0.47163162]
[1771244535385,0.0011,1977.5,1976.6,0.4710617]
[1771244535587,0.0011,1977.1,1976.6,0.4710617]
[1771244535895,0.0011,1977.5,1976.6,0.4710617]
[1771244536093,0.0011,1977.3,1976.6,0.4710617]
[1771244536301,0.0011,1977.5,1976.6,0.4710617]
[1771244539077,0.45935527,1977.8,1976.6,0.5734617]
[1771244539376,0.45935527,1977.8,1976.7,0.4710617]
[1771244539683,0.0011,1977.8,1977.0,0.4710617]
[1771244544184,0.0011,1978.1,1977.3,0.4710617]
[1771244546102,0.0011,1978.1,1977.7,7.37137845]
[1771244546803,0.45935527,1978.4,1977.9,7.37137845]
[1771244547315,0.45935527,1978.4,1977.7,7.37137845]
[1771244547794,0.0011,1978.4,1978.0,7.37137845]
[1771244549011,0.0011,1978.5,1978.0,7.84244015]
[1771244549187,0.45825527,1978.6,1978.2,7.37137845]
[1771244549885,0.911,1979.0,1978.2,7.37137845]
[1771244550092,0.45825527,1978.9,1978.2,7.37137845]
[1771244550825,0.45825527,1978.9,1978.4,7.37137845]
[1771244551514,0.45825527,1978.9,1978.2,7.37137845]
[1771244552007,0.45825527,1978.9,1977.9,0.4710617]
[1771244553597,0.45825527,1978.9,1977.8,0.519]
[1771244553915,0.45825527,1978.9,1977.8,0.9900617]
[1771244558419,0.45825527,1978.8,1977.8,0.519]
[1771244558621,0.45825527,1978.8,1977.6,0.911]
[1771244559025,0.45825527,1978.6,1977.6,0.911]
[1771244559890,0.45825527,1978.6,1977.4,0.9900617]
[1771244561399,0.45825527,1978.6,1977.5,0.4710617]
[1771244563422,0.45825527,1978.5,1977.4,0.519]
[1771244564228,0.45825527,1978.5,1977.4,1.00652604]
[1771244567738,0.47038116,1978.4,1977.4,0.519]
[1771244568423,0.47038116,1978.3,1977.1,0.48698531]
[1771244570408,0.47038116,1978.2,1977.1,0.48698531]
[1771244571123,0.47038116,1978.4,1977.4,0.48598531]
[1771244575552,0.47038116,1978.6,1977.4,0.48598531]
[1771244576584,0.47038116,1978.6,1977.4,8.84833865]
[1771244576759,0.47038116,1978.6,1977.5,0.48598531]
[1771244580454,1.26353658,1978.6,1977.3,1.00498531]
[1771244580684,0.47038116,1978.5,1977.3,1.00498531]
[1771244581097,0.47038116,1978.4,1977.3,0.519]
[1771244582076,0.47038116,1978.4,1977.2,0.001]
[1771244582374,0.47038116,1978.4,1977.2,0.48698531]
[1771244584179,0.47038116,1978.4,1977.2,0.001]
[1771244586014,0.47038116,1978.3,1977.2,0.001]
[1771244587451,0.47038116,1978.1,1977.2,0.001]
[1771244590935,0.47038116,1978.0,1977.2,0.001]
[1771244592452,0.47038116,1977.9,1977.2,0.001]
[1771244598160,0.47038116,1977.9,1977.3,0.001]
[1771244601536,0.47038116,1977.9,1977.3,0.49270847]
[1771244602041,0.48179867,1978.2,1977.3,0.49270847]
[1771244602918,0.48179867,1978.2,1977.3,0.001]
[1771244603323,0.48179867,1978.1,1977.3,0.001]
[1771244607897,2.17475016,1978.3,1977.3,0.49270847]
[1771244607898,0.48179867,1978.2,1977.3,0.49270847]
[1771244608193,0.911,1978.3,1977.3,0.49270847]
[1771244608765,0.48179867,1978.2,1977.4,0.49170847]
[1771244609607,0.48179867,1978.2,1977.3,0.49270847]
[1771244609817,0.48179867,1978.2,1977.4,0.001]
[1771244615943,0.48179867,1978.2,1977.4,0.49270847]
[1771244620366,0.48179867,1978.2,1977.4,0.001]
[1771244621232,0.48179867,1978.1,1977.4,0.001]
[1771244621437,0.48179867,1978.1,1977.5,0.001]
[1771244623727,0.47001098,1977.9,1977.5,0.001]
[1771244631947,1.26397364,1977.9,1977.5,0.001]
[1771244632270,0.47585663,1977.8,1977.5,0.001]
[1771244638368,0.47585663,1977.7,1977.3,0.001]
[1771244640385,0.47585663,1977.5,1977.3,0.001]
[1771244643880,0.47585663,1977.9,1977.3,0.001]
[1771244644080,0.47585663,1977.9,1977.4,0.001]
[1771244646361,1.88685663,1978.1,1977.4,0.47120815]
[1771244646590,1.411,1978.1,1977.4,0.47120815]
[1771244646795,1.411,1978.1,1977.5,0.47020815]
[1771244646967,0.911,1978.3,1977.5,0.47020815]
[1771244647555,1.38685663,1978.3,1977.5,0.47020815]
[1771244647965,0.911,1978.3,1977.7,0.47020815]
[1771244651407,0.0011,1978.4,1977.7,0.47020815]
[1771244653301,0.47695663,1978.4,1977.7,0.47020815]
[1771244656122,0.0011,1978.3,1977.7,0.47020815]
[1771244660213,0.46772867,1978.3,1977.5,0.45124908]
[1771244664502,0.46662867,1978.1,1977.5,0.001]
[1771244669715,0.46662867,1977.9,1977.5,0.001]
[1771244678403,0.46662867,1978.1,1977.5,0.001]
[1771244678799,0.46662867,1977.9,1977.5,0.001]
[1771244679703,0.46662867,1977.8,1977.4,0.001]
[1771244680301,0.46662867,1977.8,1977.5,0.001]
[1771244682716,7.37804869,1978.0,1977.5,0.001]
[1771244682918,0.0011,1978.2,1977.5,0.45124908]
[1771244692146,0.0011,1978.1,1977.5,0.45124908]
[1771244701064,0.0011,1978.1,1977.7,0.45538317]
[1771244702556,0.0011,1978.2,1977.9,0.45538317]
[1771244702932,0.0011,1978.3,1977.9,0.45538317]
[1771244704039,0.0011,1978.1,1977.9,0.45538317]
[1771244704238,0.0011,1978.3,1977.9,0.45538317]
[1771244704239,0.0011,1978.2,1977.9,0.45538317]
[1771244708747,0.0011,1978.5,1978.2,7.82935545]
[1771244709762,0.0011,1978.5,1978.2,7.37397228]
[1771244709963,0.0011,1978.5,1978.3,0.45538317]
[1771244710464,0.0011,1978.6,1978.3,0.45538317]
[1771244710762,0.0011,1978.7,1978.4,0.45538317]
[1771244711933,0.0011,1978.7,1978.2,8.34835545]
[1771244712157,0.0011,1978.7,1978.3,0.45538317]
[1771244716053,0.0011,1978.6,1978.2,7.89297228]
[1771244716249,0.0011,1978.6,1978.2,8.37714515]
[1771244716471,0.0011,1978.6,1978.2,7.89297228]
[1771244716668,0.0011,1978.7,1978.4,7.85814515]
[1771244716868,0.0011,1978.7,1978.5,0.48417287]
[1771244717651,0.0011,1978.8,1978.5,0.48417287]
[1771244718169,0.0011,1978.8,1978.2,0.519]
[1771244718170,0.48889296,1978.8,1978.2,0.519]
[1771244721173,0.0011,1978.8,1978.4,0.48417287]
[1771244722676,0.0011,1978.8,1978.3,7.37397228]
[1771244722848,0.48889296,1978.8,1978.2,1.00317287]
[1771244725380,0.48889296,1978.8,1978.3,7.37397228]
[1771244725584,0.48889296,1978.8,1978.3,7.85814515]
[1771244725760,0.0011,1978.8,1978.3,7.85814515]
[1771244728360,0.0011,1978.8,1978.3,7.85914515]
[1771244728784,0.0011,1978.7,1978.3,7.85914515]
[1771244731053,0.0011,1978.7,1978.3,0.001]
[1771244731054,0.48889296,1978.7,1978.3,0.001]
[1771244731258,0.0011,1978.7,1978.3,0.001]
[1771244733288,0.0011,1978.7,1978.3,0.48517287]
[1771244733990,0.48779296,1979.4,1978.6,0.48417287]
[1771244734187,0.48779296,1979.4,1978.7,7.85814515]
[1771244734580,1.39879296,1979.7,1978.8,0.48417287]
[1771244734888,0.48779296,1978.8,1978.3,0.001]
[1771244736994,0.48779296,1979.2,1978.3,0.001]
[1771244737294,0.48779296,1979.2,1978.3,0.48517287]
[1771244739302,0.48779296,1979.2,1978.5,0.48417287]
[1771244740288,0.48779296,1979.2,1978.4,7.91097228]
[1771244740494,0.48779296,1979.2,1978.5,0.48417287]
[1771244741479,0.48889296,1979.1,1978.5,0.48417287]
[1771244747209,0.0011,1979.2,1978.9,0.47511332]
[1771244747393,0.48786919,1980.1,1979.1,0.48023796]
[1771244748192,0.48786919,1980.1,1979.2,7.8470516]
[1771244748383,0.48786919,1980.1,1979.3,0.48023796]
[1771244749308,0.48786919,1980.1,1979.5,0.48023796]
[1771244749514,0.48786919,1980.3,1979.6,0.48023796]
[1771244749899,0.48786919,1980.3,1979.5,0.544]
[1771244750514,0.48786919,1980.3,1979.6,0.48023796]
[1771244751510,1.91686919,1980.5,1979.6,0.48023796]
[1771244751820,0.48786919,1980.9,1979.6,0.48023796]
[1771244753216,0.48786919,1980.9,1979.7,0.48023796]
[1771244753620,0.48786919,1981.2,1980.0,0.18685624]
[1771244753786,0.91,1981.5,1980.2,0.48023796]
[1771244753787,0.48786919,1981.4,1980.2,0.48023796]
[1771244754319,0.0011,1980.3,1980.2,0.48023796]
[1771244754503,0.48786919,1981.2,1980.2,0.48023796]
[1771244755887,0.48786919,1981.5,1980.2,0.48023796]
[1771244756788,0.003,1981.6,1980.4,9.56904982]
[1771244756988,0.003,1981.6,1980.5,0.48023796]
[1771244758211,0.003,1981.6,1980.7,0.48023796]
[1771244758415,0.003,1981.6,1980.9,0.48023796]
[1771244760932,1.34776802,1982.0,1980.8,0.544]
[1771244760933,0.0834092,1982.0,1981.0,0.48023796]
[1771244761133,10.61375266,1985.6,1984.2,0.48023796]
[1771244761296,1.51027355,1986.5,1984.2,0.48023796]
[1771244761297,0.48786919,1985.4,1984.4,3.46378794]
[1771244761496,0.48786919,1985.4,1984.3,0.566]
[1771244761709,2.354,1986.6,1984.5,2.83025912]
[1771244762048,0.48786919,1986.8,1985.1,0.48023796]
[1771244762221,0.48786919,1986.8,1985.2,3.48478017]
[1771244762544,0.853,1986.9,1985.2,0.568]
[1771244762545,0.48786919,1986.6,1985.2,0.568]
[1771244763320,0.48786919,1986.6,1985.3,0.48023796]
[1771244763863,0.48786919,1987.4,1985.8,0.48023796]
[1771244764018,5.02859758,1988.7,1985.7,9.56904982]
[1771244764019,0.48786919,1988.3,1986.2,0.48023796]
[1771244764212,0.853,1988.8,1987.8,0.48023796]
[1771244764457,0.00195435,1989.3,1987.8,0.48023796]
[1771244764458,0.00195435,1989.3,1987.9,1.05023796]
[1771244764758,0.00195435,1989.3,1988.3,9.56904982]
[1771244764917,0.00195435,1989.3,1988.1,0.48023796]
[1771244765111,0.00195435,1989.3,1988.2,0.48023796]
[1771244765429,2.4842447,1989.8,1988.3,1.96123796]
[1771244765629,2.4842447,1989.8,1988.5,0.48023796]
[1771244765833,1.22781937,1989.8,1988.6,0.99823796]
[1771244766046,1.22781937,1989.8,1988.7,1.482]
[1771244766411,1.22781937,1989.8,1988.5,0.573]
[1771244766412,2.48425164,1989.8,1988.5,0.573]
[1771244766613,0.48786919,1989.6,1988.1,0.573]
[1771244766833,0.48786919,1989.4,1987.7,0.48023796]
[1771244767044,0.48786919,1989.0,1987.6,0.518]
[1771244767253,0.59026919,1989.4,1987.7,0.518]
[1771244767413,1.15881937,1989.8,1987.9,9.56904982]
[1771244767617,1.15881937,1989.8,1988.3,0.48023796]
[1771244767817,1.15881937,1989.8,1988.5,0.48023796]
[1771244768159,1.15881937,1989.8,1988.6,0.573]
[1771244768458,2.41525326,1989.8,1988.2,0.48023796]
[1771244768752,0.48786919,1989.5,1988.2,0.908]
[1771244768959,0.48786919,1989.4,1988.2,0.873]
[1771244769256,0.48786919,1988.6,1987.1,0.908]
[1771244769462,9.680578,1988.7,1987.1,0.908]
[1771244769750,1.25722906,1988.5,1987.1,0.908]
[1771244770138,1.25722906,1988.5,1987.1,0.874]
[1771244770320,0.48786919,1989.1,1987.1,1.35423796]
[1771244770519,0.48786919,1988.9,1987.1,1.35423796]
[1771244771021,5.02694176,1989.3,1987.6,9.56904982]
[1771244771022,1.74461825,1989.3,1987.6,9.56904982]
[1771244771336,0.48786919,1988.9,1986.8,10.04928778]
[1771244771542,0.48786919,1988.9,1986.9,1.48]
[1771244771762,1.25716584,1988.6,1986.9,1.48]
[1771244772123,1.25716584,1988.6,1987.0,0.48023796]
[1771244773031,0.48786919,1989.0,1987.2,10.04928778]
[1771244773230,0.48786919,1989.0,1987.2,0.48023796]
[1771244773449,0.48786919,1988.8,1987.2,0.48023796]
[1771244773822,19.091758,1988.6,1986.4,0.46883056]
[1771244774057,0.1024,1988.6,1986.5,0.46883056]
[1771244774254,1.7294796,1988.7,1986.8,10.03788038]
[1771244774460,0.47237698,1988.7,1987.2,9.56904982]
[1771244774627,0.47237698,1988.7,1987.3,1.479]